[Event "Early-Titled-Tuesday-Blitz-March-26-2024"]
[Site "Chess.com"]
[Date "2024.03.26"]
[Round "6"]
[White "kingofthenil"]
[Black "CrushingKings"]
[Result "1-0"]
[WhiteElo "2778"]
[BlackElo "2573"]
[TimeControl "180+1"]
[EndTime "9:05:04 PDT"]
[Termination "kingofthenil won by resignation"]

1. e4 {[%clk 0:03:00.9]} 1... g6 {[%clk 0:03:00]} 2. d4 {[%clk 0:03:01.3]} 2...
Bg7 {[%clk 0:03:00.5]} 3. Nc3 {[%clk 0:03:01.1]} 3... c6 {[%clk 0:03:00.5]} 4.
Bc4 {[%clk 0:03:00.6]} 4... d6 {[%clk 0:03:00.3]} 5. Bb3 {[%clk 0:02:56.8]} 5...
Nd7 {[%clk 0:03:00.3]} 6. h4 {[%clk 0:02:52.1]} 6... h5 {[%clk 0:02:59.7]} 7.
Nf3 {[%clk 0:02:51]} 7... Ngf6 {[%clk 0:02:59.2]} 8. e5 {[%clk 0:02:45.4]} 8...
Ng4 {[%clk 0:02:59.3]} 9. Ng5 {[%clk 0:02:29.1]} 9... d5 {[%clk 0:02:58.7]} 10.
e6 {[%clk 0:02:29.3]} 10... fxe6 {[%clk 0:02:58]} 11. Nxe6 {[%clk 0:02:30.2]}
11... Qb6 {[%clk 0:02:57.5]} 12. Na4 {[%clk 0:02:24.8]} 12... Qb4+ {[%clk
0:02:56.7]} 13. Bd2 {[%clk 0:02:22.5]} 13... Qd6 {[%clk 0:02:56.8]} 14. Nxg7+
{[%clk 0:02:16.1]} 14... Kf7 {[%clk 0:02:57.4]} 15. Nxh5 {[%clk 0:02:07.4]}
15... gxh5 {[%clk 0:02:58.3]} 16. Qe2 {[%clk 0:01:58.9]} 16... b5 {[%clk
0:02:58.3]} 17. Nc3 {[%clk 0:01:56.7]} 17... Ndf6 {[%clk 0:02:59]} 18. O-O-O
{[%clk 0:01:53]} 18... Bf5 {[%clk 0:02:58.8]} 19. f3 {[%clk 0:01:53.1]} 19...
Nh6 {[%clk 0:02:58.7]} 20. Rhf1 {[%clk 0:01:40.2]} 20... Rag8 {[%clk 0:02:49.2]}
21. Ne4 {[%clk 0:01:33.5]} 21... Bxe4 {[%clk 0:02:23.1]} 22. fxe4 {[%clk
0:01:34.4]} 22... Qe6 {[%clk 0:02:18.5]} 23. e5 {[%clk 0:01:29]} 23... Ke8
{[%clk 0:02:18.1]} 24. Rde1 {[%clk 0:01:20.6]} 24... Ne4 {[%clk 0:02:17.4]} 25.
Qxh5+ {[%clk 0:01:20.4]} 25... Nf7 {[%clk 0:02:12.9]} 26. Qxh8 {[%clk
0:00:50.1]} 26... Rxh8 {[%clk 0:01:34]} 27. Rxe4 {[%clk 0:00:51]} 27... Qg6
{[%clk 0:01:34.2]} 28. Ref4 {[%clk 0:00:40.7]} 28... Nd8 {[%clk 0:01:34.5]} 29.
g4 {[%clk 0:00:21.2]} 29... Ne6 {[%clk 0:00:58.2]} 30. h5 {[%clk 0:00:19.3]}
30... Qg8 {[%clk 0:00:56.8]} 31. c3 {[%clk 0:00:06.8]} 31... Nxf4 {[%clk
0:00:49.2]} 32. Rxf4 {[%clk 0:00:07.7]} 32... Qg7 {[%clk 0:00:40.9]} 33. Bc2
{[%clk 0:00:07.5]} 33... Rf8 {[%clk 0:00:39.9]} 34. Bg6+ {[%clk 0:00:05.8]}
34... Kd8 {[%clk 0:00:38.9]} 35. Rf5 {[%clk 0:00:04]} 35... Rxf5 {[%clk
0:00:19.4]} 36. gxf5 {[%clk 0:00:03.9]} 36... c5 {[%clk 0:00:17]} 37. h6 {[%clk
0:00:03.9]} 37... Qh8 {[%clk 0:00:17.3]} 38. h7 {[%clk 0:00:04.1]} 38... Qg7
{[%clk 0:00:17]} 39. Bg5 {[%clk 0:00:03.4]} 39... Kc7 {[%clk 0:00:10.9]} 40. Kb1
{[%clk 0:00:02.5]} 40... e6 {[%clk 0:00:10.1]} 41. Bf6 {[%clk 0:00:02.6]} 41...
Qh6 {[%clk 0:00:08.8]} 42. h8=Q {[%clk 0:00:03.1]} 42... Qd2 {[%clk 0:00:09.5]}
43. Qh1 {[%clk 0:00:03.3]} 1-0

[Event "Early-Titled-Tuesday-Blitz-March-26-2024"]
[Site "Chess.com"]
[Date "2024.03.26"]
[Round "6"]
[White "LikeWater"]
[Black "AccioChess"]
[Result "1-0"]
[WhiteElo "2713"]
[BlackElo "2532"]
[TimeControl "180+1"]
[EndTime "9:05:04 PDT"]
[Termination "LikeWater won on time"]

1. e4 {[%clk 0:02:59.4]} 1... c5 {[%clk 0:02:59.4]} 2. Nf3 {[%clk 0:02:57.8]}
2... e6 {[%clk 0:02:58.7]} 3. c3 {[%clk 0:02:55.6]} 3... Nf6 {[%clk 0:02:56.9]}
4. e5 {[%clk 0:02:53.9]} 4... Nd5 {[%clk 0:02:57.1]} 5. Bc4 {[%clk 0:02:52.6]}
5... d6 {[%clk 0:02:56.3]} 6. exd6 {[%clk 0:02:50.7]} 6... Bxd6 {[%clk
0:02:57.2]} 7. d4 {[%clk 0:02:50]} 7... O-O {[%clk 0:02:55.8]} 8. O-O {[%clk
0:02:49.2]} 8... Nc6 {[%clk 0:02:55.6]} 9. dxc5 {[%clk 0:02:41.6]} 9... Bxc5
{[%clk 0:02:55.6]} 10. Qe2 {[%clk 0:02:41.4]} 10... Nce7 {[%clk 0:02:31.2]} 11.
Bg5 {[%clk 0:02:37.2]} 11... f6 {[%clk 0:02:28.1]} 12. Bc1 {[%clk 0:02:27.1]}
12... a5 {[%clk 0:02:24]} 13. Nbd2 {[%clk 0:02:22.7]} 13... Qc7 {[%clk
0:02:12.4]} 14. Ne4 {[%clk 0:02:19.4]} 14... Bb6 {[%clk 0:02:12]} 15. Ng3 {[%clk
0:02:10.5]} 15... e5 {[%clk 0:02:01.4]} 16. Nh4 {[%clk 0:01:39.1]} 16... Be6
{[%clk 0:02:00.1]} 17. Bd3 {[%clk 0:01:32.5]} 17... g6 {[%clk 0:01:54]} 18. Kh1
{[%clk 0:01:27.5]} 18... Rf7 {[%clk 0:01:51.5]} 19. Bh6 {[%clk 0:01:18]} 19...
Qd7 {[%clk 0:01:42.9]} 20. Rad1 {[%clk 0:01:16.4]} 20... g5 {[%clk 0:01:27.7]}
21. Nf3 {[%clk 0:00:36.1]} 21... Qc6 {[%clk 0:00:46.5]} 22. Bxg5 {[%clk
0:00:28.3]} 22... fxg5 {[%clk 0:00:46.3]} 23. Nxe5 {[%clk 0:00:28.5]} 23... Qc7
{[%clk 0:00:41.5]} 24. Nxf7 {[%clk 0:00:25.9]} 24... Bxf7 {[%clk 0:00:42.4]} 25.
Qg4 {[%clk 0:00:19]} 25... Qf4 {[%clk 0:00:37.2]} 26. Qd7 {[%clk 0:00:14.1]}
26... Rb8 {[%clk 0:00:28.6]} 27. c4 {[%clk 0:00:11.3]} 27... Be8 {[%clk
0:00:25.4]} 28. Qh3 {[%clk 0:00:07.9]} 28... Nf6 {[%clk 0:00:23.5]} 29. Qe6+
{[%clk 0:00:07.1]} 29... Kf8 {[%clk 0:00:21.4]} 30. Qxb6 {[%clk 0:00:07]} 30...
Bc6 {[%clk 0:00:16.4]} 31. Qc5 {[%clk 0:00:05.6]} 31... Nd7 {[%clk 0:00:08.7]}
32. Qe3 {[%clk 0:00:05.1]} 32... Qf6 {[%clk 0:00:05.5]} 33. Nh5 {[%clk
0:00:05.3]} 33... Qh6 {[%clk 0:00:05.3]} 34. Qh3 {[%clk 0:00:05.6]} 34... Nf6
{[%clk 0:00:03.4]} 35. Be2 {[%clk 0:00:04.8]} 1-0

[Event "Early-Titled-Tuesday-Blitz-March-26-2024"]
[Site "Chess.com"]
[Date "2024.03.26"]
[Round "6"]
[White "Predator0608"]
[Black "daika91"]
[Result "1/2-1/2"]
[WhiteElo "2541"]
[BlackElo "2705"]
[TimeControl "180+1"]
[EndTime "9:05:10 PDT"]
[Termination "Game drawn by repetition"]

1. e4 {[%clk 0:03:00.9]} 1... e5 {[%clk 0:02:58.8]} 2. Nf3 {[%clk 0:03:00.6]}
2... Nf6 {[%clk 0:02:58.8]} 3. Nxe5 {[%clk 0:03:00.6]} 3... d6 {[%clk
0:02:58.6]} 4. Nf3 {[%clk 0:03:00.1]} 4... Nxe4 {[%clk 0:02:58.4]} 5. Nc3 {[%clk
0:03:00.8]} 5... Nxc3 {[%clk 0:02:58.2]} 6. dxc3 {[%clk 0:03:01.7]} 6... Be7
{[%clk 0:02:58.4]} 7. Bc4 {[%clk 0:03:02.2]} 7... O-O {[%clk 0:02:58.4]} 8. O-O
{[%clk 0:03:03.1]} 8... Be6 {[%clk 0:02:58]} 9. Qe2 {[%clk 0:03:01.4]} 9... Bxc4
{[%clk 0:02:56.2]} 10. Qxc4 {[%clk 0:03:02.3]} 10... Nd7 {[%clk 0:02:56.1]} 11.
Bf4 {[%clk 0:03:02.2]} 11... Nf6 {[%clk 0:02:51.9]} 12. Rfe1 {[%clk 0:03:01.4]}
12... Qd7 {[%clk 0:02:51.7]} 13. h3 {[%clk 0:02:59.3]} 13... h6 {[%clk
0:02:50.8]} 14. Re2 {[%clk 0:02:58]} 14... Rfe8 {[%clk 0:02:50.8]} 15. Rae1
{[%clk 0:02:57.1]} 15... Bf8 {[%clk 0:02:49.7]} 16. Qb3 {[%clk 0:02:54.1]} 16...
b6 {[%clk 0:02:46.4]} 17. Qc4 {[%clk 0:02:52.2]} 17... c5 {[%clk 0:02:28.6]} 18.
Qd3 {[%clk 0:02:46.2]} 18... Rxe2 {[%clk 0:02:27.2]} 19. Rxe2 {[%clk 0:02:46.2]}
19... Re8 {[%clk 0:02:27.8]} 20. Rxe8 {[%clk 0:02:35.5]} 20... Nxe8 {[%clk
0:02:28.7]} 21. Qd5 {[%clk 0:02:35.8]} 21... Qc8 {[%clk 0:02:19.8]} 22. Nd2
{[%clk 0:02:29.6]} 22... Nf6 {[%clk 0:02:19.5]} 23. Qf3 {[%clk 0:02:29.1]} 23...
d5 {[%clk 0:02:18.3]} 24. Bxh6 {[%clk 0:02:29.1]} 24... Ne4 {[%clk 0:02:00.4]}
25. Be3 {[%clk 0:02:15]} 25... Qe6 {[%clk 0:01:57.5]} 26. a3 {[%clk 0:01:59.1]}
26... f5 {[%clk 0:01:55.6]} 27. Nxe4 {[%clk 0:01:55.5]} 27... fxe4 {[%clk
0:01:50]} 28. Qh5 {[%clk 0:01:50.7]} 28... Bd6 {[%clk 0:01:44.8]} 29. Kf1 {[%clk
0:01:44.5]} 29... d4 {[%clk 0:01:40.4]} 30. cxd4 {[%clk 0:01:34]} 30... cxd4
{[%clk 0:01:41.3]} 31. Bg5 {[%clk 0:01:15.6]} 31... Qe5 {[%clk 0:01:20.2]} 32.
h4 {[%clk 0:00:57.8]} 32... d3 {[%clk 0:00:48.2]} 33. cxd3 {[%clk 0:00:58.7]}
33... exd3 {[%clk 0:00:48]} 34. Qd1 {[%clk 0:00:57.3]} 34... Qb5 {[%clk
0:00:38.8]} 35. Qd2 {[%clk 0:00:52.4]} 35... Be5 {[%clk 0:00:35.5]} 36. b4
{[%clk 0:00:47.2]} 36... Qc4 {[%clk 0:00:33.5]} 37. g3 {[%clk 0:00:35.1]} 37...
Bc3 {[%clk 0:00:31.5]} 38. Qd1 {[%clk 0:00:35.4]} 38... d2+ {[%clk 0:00:30.6]}
39. Kg1 {[%clk 0:00:34.3]} 39... Qe6 {[%clk 0:00:21.1]} 40. Be3 {[%clk
0:00:27.8]} 40... Qd5 {[%clk 0:00:19.5]} 41. Kf1 {[%clk 0:00:23.6]} 41... Qd3+
{[%clk 0:00:18.4]} 42. Kg2 {[%clk 0:00:21.5]} 42... Kf8 {[%clk 0:00:18]} 43.
Qf3+ {[%clk 0:00:21.2]} 43... Kg8 {[%clk 0:00:11.5]} 44. Qd1 {[%clk 0:00:20.3]}
44... Kf8 {[%clk 0:00:09]} 45. h5 {[%clk 0:00:20.3]} 45... Kg8 {[%clk
0:00:08.7]} 46. Kh2 {[%clk 0:00:18]} 46... Kh7 {[%clk 0:00:08.8]} 47. Kg2 {[%clk
0:00:17.1]} 47... Qe4+ {[%clk 0:00:08.6]} 48. Kh2 {[%clk 0:00:17.3]} 48... Qd3
{[%clk 0:00:09.2]} 49. Kg2 {[%clk 0:00:17.3]} 49... Qe4+ {[%clk 0:00:09.4]} 50.
Kh2 {[%clk 0:00:16.8]} 50... Qd3 {[%clk 0:00:10]} 1/2-1/2

[Event "Early-Titled-Tuesday-Blitz-March-26-2024"]
[Site "Chess.com"]
[Date "2024.03.26"]
[Round "6"]
[White "Orest_Vovk"]
[Black "CarlosjPineror"]
[Result "1-0"]
[WhiteElo "2583"]
[BlackElo "2748"]
[TimeControl "180+1"]
[EndTime "9:05:11 PDT"]
[Termination "Orest_Vovk won by resignation"]

1. h4 {[%clk 0:02:55.9]} 1... e5 {[%clk 0:02:56.9]} 2. h5 {[%clk 0:02:55.8]}
2... h6 {[%clk 0:02:56.8]} 3. Nc3 {[%clk 0:02:54.9]} 3... d5 {[%clk 0:02:56.7]}
4. e4 {[%clk 0:02:52.6]} 4... d4 {[%clk 0:02:56.5]} 5. Nce2 {[%clk 0:02:48.9]}
5... Be6 {[%clk 0:02:56.2]} 6. Ng3 {[%clk 0:02:45.7]} 6... a6 {[%clk 0:02:44.8]}
7. Nf3 {[%clk 0:02:43.2]} 7... Nc6 {[%clk 0:02:44.1]} 8. Nh4 {[%clk 0:02:32.5]}
8... Qd7 {[%clk 0:02:40.6]} 9. Ngf5 {[%clk 0:02:20.9]} 9... Nge7 {[%clk
0:02:37.1]} 10. Nxe7 {[%clk 0:02:10]} 10... Bxe7 {[%clk 0:02:36.3]} 11. d3
{[%clk 0:02:09.9]} 11... O-O-O {[%clk 0:02:34]} 12. a3 {[%clk 0:02:09.5]} 12...
Rdg8 {[%clk 0:02:20.9]} 13. g3 {[%clk 0:02:03.5]} 13... g5 {[%clk 0:02:18.8]}
14. hxg6 {[%clk 0:01:58.7]} 14... fxg6 {[%clk 0:02:19]} 15. Bd2 {[%clk
0:01:53.3]} 15... Bf6 {[%clk 0:02:17]} 16. Qe2 {[%clk 0:01:49.7]} 16... Ne7
{[%clk 0:02:16.4]} 17. O-O-O {[%clk 0:01:45.4]} 17... g5 {[%clk 0:02:10.9]} 18.
Nf5 {[%clk 0:01:38.8]} 18... Nxf5 {[%clk 0:02:10.9]} 19. exf5 {[%clk 0:01:38.5]}
19... Bxf5 {[%clk 0:02:11.8]} 20. Bg2 {[%clk 0:01:38.9]} 20... c6 {[%clk
0:02:03.1]} 21. Rde1 {[%clk 0:01:37.5]} 21... Re8 {[%clk 0:01:49.3]} 22. Be4
{[%clk 0:01:31.9]} 22... Bg4 {[%clk 0:01:46]} 23. f3 {[%clk 0:01:30.2]} 23...
Be6 {[%clk 0:01:45.5]} 24. g4 {[%clk 0:01:28]} 24... Bg7 {[%clk 0:01:43.3]} 25.
Ba5 {[%clk 0:01:17.5]} 25... Rhf8 {[%clk 0:01:37.6]} 26. Qd2 {[%clk 0:01:15.6]}
26... Bd5 {[%clk 0:01:30.1]} 27. Qb4 {[%clk 0:01:11.2]} 27... Bxe4 {[%clk
0:01:23.6]} 28. fxe4 {[%clk 0:01:12.1]} 28... Rf4 {[%clk 0:01:14.3]} 29. Qb6
{[%clk 0:01:10.6]} 29... Kb8 {[%clk 0:01:07.2]} 30. Rhg1 {[%clk 0:01:07.5]}
30... Bf6 {[%clk 0:00:57.1]} 31. Bb4 {[%clk 0:00:54.7]} 31... Bd8 {[%clk
0:00:46.4]} 32. Qc5 {[%clk 0:00:52.1]} 32... Bc7 {[%clk 0:00:46.4]} 33. Rh1
{[%clk 0:00:43]} 33... Qe6 {[%clk 0:00:44]} 34. Reg1 {[%clk 0:00:35.5]} 34... b6
{[%clk 0:00:42.2]} 35. Qc4 {[%clk 0:00:33.1]} 35... Qxc4 {[%clk 0:00:42.1]} 36.
dxc4 {[%clk 0:00:33.6]} 36... c5 {[%clk 0:00:38]} 37. Bd2 {[%clk 0:00:32.2]}
37... Rf6 {[%clk 0:00:38.1]} 38. Rf1 {[%clk 0:00:30]} 38... Ref8 {[%clk
0:00:36.6]} 39. Rf5 {[%clk 0:00:29.6]} 39... Rxf5 {[%clk 0:00:32.6]} 40. gxf5
{[%clk 0:00:26.6]} 40... Rf6 {[%clk 0:00:31.9]} 41. Kd1 {[%clk 0:00:25.2]} 41...
Kc8 {[%clk 0:00:31.5]} 42. Ke2 {[%clk 0:00:25.7]} 42... Kd7 {[%clk 0:00:28.1]}
43. Kf3 {[%clk 0:00:26.2]} 43... Ke7 {[%clk 0:00:28.6]} 44. Kg4 {[%clk
0:00:26.4]} 44... Kf7 {[%clk 0:00:29.2]} 45. Bxg5 {[%clk 0:00:25.3]} 45... hxg5
{[%clk 0:00:15.4]} 46. Rh7+ {[%clk 0:00:24.1]} 46... Kg8 {[%clk 0:00:14.9]} 47.
Rxc7 {[%clk 0:00:25]} 47... Rf7 {[%clk 0:00:10.5]} 48. Rxf7 {[%clk 0:00:17.7]}
48... Kxf7 {[%clk 0:00:10.8]} 49. Kxg5 {[%clk 0:00:17.6]} 49... b5 {[%clk
0:00:11.3]} 50. b3 {[%clk 0:00:17.3]} 50... a5 {[%clk 0:00:11.6]} 51. a4 {[%clk
0:00:17.2]} 1-0

[Event "Early-Titled-Tuesday-Blitz-March-26-2024"]
[Site "Chess.com"]
[Date "2024.03.26"]
[Round "6"]
[White "Aleksandar-Topalov"]
[Black "TimGrutter03"]
[Result "0-1"]
[WhiteElo "2350"]
[BlackElo "2563"]
[TimeControl "180+1"]
[EndTime "9:05:11 PDT"]
[Termination "TimGrutter03 won on time"]

1. b3 {[%clk 0:02:54.1]} 1... e5 {[%clk 0:02:59.8]} 2. Bb2 {[%clk 0:02:53.1]}
2... Nc6 {[%clk 0:03:00.7]} 3. e3 {[%clk 0:02:52.5]} 3... g6 {[%clk 0:03:00.8]}
4. c4 {[%clk 0:02:51.1]} 4... Bg7 {[%clk 0:03:00.6]} 5. d3 {[%clk 0:02:47.6]}
5... Nge7 {[%clk 0:02:59]} 6. Nd2 {[%clk 0:02:47.6]} 6... O-O {[%clk 0:02:59.2]}
7. a3 {[%clk 0:02:47.9]} 7... f5 {[%clk 0:02:59.5]} 8. Qc2 {[%clk 0:02:47.7]}
8... a6 {[%clk 0:02:55.2]} 9. Ngf3 {[%clk 0:02:47.5]} 9... d6 {[%clk 0:02:53.3]}
10. Be2 {[%clk 0:02:43.6]} 10... h6 {[%clk 0:02:49.7]} 11. O-O {[%clk
0:02:34.4]} 11... Be6 {[%clk 0:02:49.4]} 12. d4 {[%clk 0:02:25.4]} 12... e4
{[%clk 0:02:49.5]} 13. d5 {[%clk 0:02:16.4]} 13... exf3 {[%clk 0:02:49.5]} 14.
Bxf3 {[%clk 0:02:13.6]} 14... Bxd5 {[%clk 0:02:40.7]} 15. cxd5 {[%clk
0:02:11.9]} 15... Ne5 {[%clk 0:02:38.7]} 16. Bxe5 {[%clk 0:02:03.8]} 16... Bxe5
{[%clk 0:02:39.6]} 17. Rac1 {[%clk 0:02:02.8]} 17... Rc8 {[%clk 0:02:40.2]} 18.
g3 {[%clk 0:02:00.9]} 18... g5 {[%clk 0:02:34]} 19. Bg2 {[%clk 0:01:53.3]} 19...
Qe8 {[%clk 0:02:31.3]} 20. f4 {[%clk 0:01:49.2]} 20... Bg7 {[%clk 0:02:29.9]}
21. Rce1 {[%clk 0:01:46.5]} 21... Qd7 {[%clk 0:02:02.7]} 22. Nf3 {[%clk
0:01:38.3]} 22... g4 {[%clk 0:01:46]} 23. Nh4 {[%clk 0:01:38.3]} 23... Bf6
{[%clk 0:01:30.2]} 24. e4 {[%clk 0:01:34.8]} 24... Bxh4 {[%clk 0:01:29]} 25.
gxh4 {[%clk 0:01:35.1]} 25... fxe4 {[%clk 0:01:26.3]} 26. Qxe4 {[%clk
0:01:32.2]} 26... Nf5 {[%clk 0:01:23.3]} 27. Qb4 {[%clk 0:00:41.6]} 27... b6
{[%clk 0:01:13.3]} 28. Re6 {[%clk 0:00:40.6]} 28... Qg7 {[%clk 0:01:06.1]} 29.
Qe4 {[%clk 0:00:31.4]} 29... Nxh4 {[%clk 0:01:02.2]} 30. Re7 {[%clk 0:00:27.4]}
30... Rf7 {[%clk 0:00:58.5]} 31. Qe6 {[%clk 0:00:27.4]} 31... Rf8 {[%clk
0:00:52.1]} 32. Be4 {[%clk 0:00:26.9]} 32... Nf3+ {[%clk 0:00:35.6]} 33. Kh1
{[%clk 0:00:23.1]} 33... Nd4 {[%clk 0:00:35.1]} 34. Rxf7 {[%clk 0:00:13]} 34...
Nxe6 {[%clk 0:00:29.6]} 35. Rxg7+ {[%clk 0:00:10.6]} 35... Nxg7 {[%clk
0:00:30.5]} 36. f5 {[%clk 0:00:08.6]} 36... Nh5 {[%clk 0:00:24.6]} 37. Rf4
{[%clk 0:00:06]} 37... Nf6 {[%clk 0:00:24.5]} 38. Bg2 {[%clk 0:00:05.2]} 38...
Re8 {[%clk 0:00:23.8]} 39. h3 {[%clk 0:00:04.7]} 39... g3 {[%clk 0:00:17.8]} 40.
Kg1 {[%clk 0:00:04.5]} 40... Re3 {[%clk 0:00:15.9]} 41. Rh4 {[%clk 0:00:02.4]}
41... Kg7 {[%clk 0:00:12.7]} 42. Rc4 {[%clk 0:00:02.1]} 42... Re1+ {[%clk
0:00:06.2]} 43. Bf1 {[%clk 0:00:02.4]} 43... Nxd5 {[%clk 0:00:06.9]} 0-1

[Event "Early-Titled-Tuesday-Blitz-March-26-2024"]
[Site "Chess.com"]
[Date "2024.03.26"]
[Round "6"]
[White "Grischuk"]
[Black "ChessLover0108"]
[Result "1-0"]
[WhiteElo "3070"]
[BlackElo "2961"]
[TimeControl "180+1"]
[EndTime "9:05:13 PDT"]
[Termination "Grischuk won by checkmate"]

1. d4 {[%clk 0:03:00.9]} 1... Nf6 {[%clk 0:02:59.3]} 2. c4 {[%clk 0:03:00.9]}
2... e6 {[%clk 0:03:00]} 3. Bg5 {[%clk 0:03:01.3]} 3... c5 {[%clk 0:02:58.8]} 4.
d5 {[%clk 0:03:01.6]} 4... exd5 {[%clk 0:02:59.1]} 5. cxd5 {[%clk 0:03:02.5]}
5... g6 {[%clk 0:02:58.7]} 6. e4 {[%clk 0:02:58.4]} 6... d6 {[%clk 0:02:57.8]}
7. Nc3 {[%clk 0:02:56.6]} 7... Bg7 {[%clk 0:02:57.9]} 8. Bd3 {[%clk 0:02:54]}
8... O-O {[%clk 0:02:58.3]} 9. Nge2 {[%clk 0:02:52.6]} 9... a6 {[%clk
0:02:44.7]} 10. a4 {[%clk 0:02:52]} 10... Nbd7 {[%clk 0:02:44.7]} 11. O-O {[%clk
0:02:49.8]} 11... Qc7 {[%clk 0:02:45.4]} 12. Qd2 {[%clk 0:02:42.3]} 12... Re8
{[%clk 0:02:43.2]} 13. Ng3 {[%clk 0:02:18.6]} 13... Rb8 {[%clk 0:02:36.2]} 14.
Bh6 {[%clk 0:02:11.6]} 14... Bh8 {[%clk 0:02:34.2]} 15. h3 {[%clk 0:02:10.9]}
15... c4 {[%clk 0:02:29.4]} 16. Bc2 {[%clk 0:02:06.7]} 16... b5 {[%clk 0:02:30]}
17. axb5 {[%clk 0:02:07.1]} 17... axb5 {[%clk 0:02:30.9]} 18. Rae1 {[%clk
0:01:48.8]} 18... Nc5 {[%clk 0:02:09.9]} 19. f4 {[%clk 0:01:46.2]} 19... b4
{[%clk 0:02:09.3]} 20. Nd1 {[%clk 0:01:45.9]} 20... Ba6 {[%clk 0:01:42.6]} 21.
Rf3 {[%clk 0:01:43]} 21... Nfd7 {[%clk 0:01:31.8]} 22. e5 {[%clk 0:00:54.4]}
22... dxe5 {[%clk 0:01:26.8]} 23. f5 {[%clk 0:00:54.9]} 23... e4 {[%clk
0:01:07.2]} 24. Nxe4 {[%clk 0:00:55]} 24... Nxe4 {[%clk 0:01:07.5]} 25. Bxe4
{[%clk 0:00:54.4]} 25... Nc5 {[%clk 0:00:42.6]} 26. Nf2 {[%clk 0:00:47.1]} 26...
c3 {[%clk 0:00:41.1]} 27. bxc3 {[%clk 0:00:47]} 27... b3 {[%clk 0:00:22.2]} 28.
Bb1 {[%clk 0:00:40.5]} 28... Na4 {[%clk 0:00:16.1]} 29. f6 {[%clk 0:00:37.7]}
29... Rxe1+ {[%clk 0:00:06.1]} 30. Qxe1 {[%clk 0:00:38.6]} 30... b2 {[%clk
0:00:05.1]} 31. Re3 {[%clk 0:00:20.8]} 31... Bb5 {[%clk 0:00:05.5]} 32. Ng4
{[%clk 0:00:20.4]} 32... Qd8 {[%clk 0:00:03.6]} 33. Re5 {[%clk 0:00:15.3]} 33...
Bxf6 {[%clk 0:00:02.6]} 34. Nxf6+ {[%clk 0:00:12.8]} 34... Qxf6 {[%clk
0:00:03.5]} 35. Kh2 {[%clk 0:00:04.5]} 35... Qd6 {[%clk 0:00:04]} 36. Bf4 {[%clk
0:00:04.5]} 36... Qd7 {[%clk 0:00:03.4]} 37. Re7 {[%clk 0:00:03.9]} 37... Qd8
{[%clk 0:00:02.8]} 38. Qe5 {[%clk 0:00:03.1]} 38... Rb6 {[%clk 0:00:01.4]} 39.
d6 {[%clk 0:00:03.1]} 39... f6 {[%clk 0:00:01.1]} 40. Qe6+ {[%clk 0:00:02.7]}
40... Kh8 {[%clk 0:00:01.2]} 41. Qxf6+ {[%clk 0:00:03.2]} 41... Kg8 {[%clk
0:00:02]} 42. Qg7# {[%clk 0:00:04]} 1-0

[Event "Early-Titled-Tuesday-Blitz-March-26-2024"]
[Site "Chess.com"]
[Date "2024.03.26"]
[Round "6"]
[White "Andrei_Skvortsov"]
[Black "moro182"]
[Result "0-1"]
[WhiteElo "2737"]
[BlackElo "2896"]
[TimeControl "180+1"]
[EndTime "9:05:15 PDT"]
[Termination "moro182 won by resignation"]

1. e4 {[%clk 0:03:00.9]} 1... g6 {[%clk 0:03:00.9]} 2. d4 {[%clk 0:03:00]} 2...
Bg7 {[%clk 0:03:01.5]} 3. h3 {[%clk 0:03:00.5]} 3... d6 {[%clk 0:02:58.8]} 4.
Nf3 {[%clk 0:02:59]} 4... Nf6 {[%clk 0:02:59]} 5. Bd3 {[%clk 0:02:57.6]} 5...
O-O {[%clk 0:02:58.9]} 6. O-O {[%clk 0:02:57.9]} 6... Nc6 {[%clk 0:02:59.6]} 7.
c3 {[%clk 0:02:57.8]} 7... e5 {[%clk 0:03:00.1]} 8. Re1 {[%clk 0:02:57.7]} 8...
h6 {[%clk 0:02:59.8]} 9. Na3 {[%clk 0:02:57.5]} 9... Nh5 {[%clk 0:02:59.9]} 10.
Nc2 {[%clk 0:02:57]} 10... Qf6 {[%clk 0:02:58.6]} 11. Ne3 {[%clk 0:02:44.5]}
11... exd4 {[%clk 0:02:42.7]} 12. Nd5 {[%clk 0:02:44.6]} 12... Qd8 {[%clk
0:02:41.4]} 13. cxd4 {[%clk 0:02:28.2]} 13... Nxd4 {[%clk 0:02:41.1]} 14. Nxd4
{[%clk 0:02:26.3]} 14... Bxd4 {[%clk 0:02:42]} 15. Bxh6 {[%clk 0:02:26.5]} 15...
Bg7 {[%clk 0:02:30.8]} 16. Qd2 {[%clk 0:02:16.1]} 16... c6 {[%clk 0:02:26.6]}
17. Nc3 {[%clk 0:02:08.2]} 17... Bxh6 {[%clk 0:02:21.8]} 18. Qxh6 {[%clk
0:02:09.1]} 18... Qf6 {[%clk 0:02:22]} 19. Qe3 {[%clk 0:02:03.2]} 19... Re8
{[%clk 0:02:17.8]} 20. Qd2 {[%clk 0:01:55.8]} 20... Nf4 {[%clk 0:02:11.2]} 21.
Kh2 {[%clk 0:01:30.2]} 21... Qg5 {[%clk 0:01:58.6]} 22. Bf1 {[%clk 0:01:28.9]}
22... Nxh3 {[%clk 0:01:57.3]} 23. Qxd6 {[%clk 0:01:13.2]} 23... Nxf2 {[%clk
0:01:56]} 24. Qg3 {[%clk 0:01:04.7]} 24... Qe5 {[%clk 0:01:44.2]} 25. Qxe5
{[%clk 0:00:43.6]} 25... Ng4+ {[%clk 0:01:44.3]} 26. Kg3 {[%clk 0:00:43]} 26...
Nxe5 {[%clk 0:01:45.2]} 27. Rad1 {[%clk 0:00:43]} 27... Kg7 {[%clk 0:01:44.4]}
28. Be2 {[%clk 0:00:39.2]} 28... Be6 {[%clk 0:01:43.8]} 29. b3 {[%clk
0:00:35.2]} 29... Rad8 {[%clk 0:01:42.7]} 30. Rxd8 {[%clk 0:00:34.9]} 30... Rxd8
{[%clk 0:01:43.6]} 31. Rd1 {[%clk 0:00:34.9]} 31... Rxd1 {[%clk 0:01:42.6]} 32.
Bxd1 {[%clk 0:00:35.8]} 32... Kf6 {[%clk 0:01:42.9]} 33. Kf4 {[%clk 0:00:33.7]}
33... g5+ {[%clk 0:01:38.3]} 34. Ke3 {[%clk 0:00:33.8]} 34... Ng6 {[%clk
0:01:36.6]} 35. Kd4 {[%clk 0:00:32.6]} 35... Ke7 {[%clk 0:01:28.5]} 36. e5
{[%clk 0:00:27.8]} 36... Nh4 {[%clk 0:01:28.7]} 37. Ne4 {[%clk 0:00:20.6]} 37...
g4 {[%clk 0:01:26.2]} 38. Ng5 {[%clk 0:00:15.1]} 38... Bc8 {[%clk 0:01:02.3]}
39. Ne4 {[%clk 0:00:11.5]} 39... Nxg2 {[%clk 0:00:59.5]} 40. Nd6 {[%clk
0:00:11.8]} 40... Be6 {[%clk 0:00:55.7]} 41. Nxb7 {[%clk 0:00:12.2]} 41... g3
{[%clk 0:00:55]} 42. Nc5 {[%clk 0:00:10.5]} 42... Nh4 {[%clk 0:00:49.7]} 43. Ke3
{[%clk 0:00:10.8]} 43... Bd5 {[%clk 0:00:47.8]} 44. Nd3 {[%clk 0:00:07.3]} 44...
Nf5+ {[%clk 0:00:40.5]} 45. Ke2 {[%clk 0:00:07.7]} 45... Ke6 {[%clk 0:00:17.1]}
46. Bc2 {[%clk 0:00:07.6]} 46... Nd4+ {[%clk 0:00:16.6]} 47. Kd2 {[%clk
0:00:07.8]} 0-1